[Event "*** SCC Grand Prix: Titled Tuesday Blitz"]
[Site "Chess.com"]
[Date "2020.08.11"]
[Round "6"]
[White "Man-Chuk"]
[Black "xamax2000"]
[Result "0-1"]
[WhiteElo "2826"]
[BlackElo "2644"]
[TimeControl "180+1"]
[EndTime "11:06:25 PDT"]
[Termination "xamax2000 won by resignation"]

1. d4 {[%clk 0:03:00.9]} 1... d5 {[%clk 0:02:58.8]} 2. c4 {[%clk 0:03:01.3]}
2... e6 {[%clk 0:02:59.4]} 3. Nc3 {[%clk 0:03:01.1]} 3... a6 {[%clk 0:02:59.8]}
4. cxd5 {[%clk 0:02:59.9]} 4... exd5 {[%clk 0:03:00.7]} 5. Nf3 {[%clk
0:03:00.4]} 5... h6 {[%clk 0:03:00.6]} 6. Bf4 {[%clk 0:02:59.7]} 6... Nf6 {[%clk
0:03:01.5]} 7. e3 {[%clk 0:02:58]} 7... Bd6 {[%clk 0:03:02.4]} 8. Bd3 {[%clk
0:02:56.3]} 8... Bxf4 {[%clk 0:03:02.2]} 9. exf4 {[%clk 0:02:56.3]} 9... Bg4
{[%clk 0:03:02.8]} 10. O-O {[%clk 0:02:51.2]} 10... O-O {[%clk 0:03:02.6]} 11.
h3 {[%clk 0:02:50.2]} 11... Bxf3 {[%clk 0:03:03.1]} 12. Qxf3 {[%clk 0:02:51.1]}
12... Nc6 {[%clk 0:03:03.6]} 13. Ne2 {[%clk 0:02:43.1]} 13... Re8 {[%clk
0:03:03.5]} 14. Rad1 {[%clk 0:02:41.8]} 14... Ne4 {[%clk 0:03:03]} 15. Bb1
{[%clk 0:02:24.3]} 15... Qf6 {[%clk 0:02:54]} 16. a3 {[%clk 0:02:24.3]} 16...
Re7 {[%clk 0:02:53.5]} 17. Rd3 {[%clk 0:02:16.6]} 17... Rae8 {[%clk 0:02:52.5]}
18. Nc3 {[%clk 0:02:03.8]} 18... Nxd4 {[%clk 0:02:35.2]} 19. Qd1 {[%clk
0:01:58.1]} 19... Nxc3 {[%clk 0:02:19.2]} 20. bxc3 {[%clk 0:01:59]} 20... Ne2+
{[%clk 0:02:16]} 21. Kh1 {[%clk 0:01:59.3]} 21... Nxc3 {[%clk 0:01:56.5]} 22.
Qf3 {[%clk 0:01:45.6]} 22... Nxb1 {[%clk 0:01:53]} 23. Rxb1 {[%clk 0:01:46.5]}
23... Re1+ {[%clk 0:01:53]} 24. Rxe1 {[%clk 0:01:45.8]} 24... Rxe1+ {[%clk
0:01:53.9]} 25. Kh2 {[%clk 0:01:46.7]} 25... c6 {[%clk 0:01:54.8]} 26. Rb3
{[%clk 0:01:44.2]} 26... Re7 {[%clk 0:01:42.9]} 27. Qg4 {[%clk 0:01:44.3]} 27...
Qe6 {[%clk 0:01:36.4]} 28. f5 {[%clk 0:01:43.2]} 28... Qe5+ {[%clk 0:01:32.2]}
29. f4 {[%clk 0:01:42]} 29... Qf6 {[%clk 0:01:31.9]} 30. a4 {[%clk 0:01:39.2]}
30... d4 {[%clk 0:01:30.2]} 31. a5 {[%clk 0:01:36.9]} 31... Rd7 {[%clk
0:01:28.9]} 32. Rd3 {[%clk 0:01:29.5]} 32... c5 {[%clk 0:01:28]} 33. Rb3 {[%clk
0:01:29.4]} 33... d3 {[%clk 0:00:53.8]} 34. Rb6 {[%clk 0:01:29.4]} 34... Rd6
{[%clk 0:00:53.6]} 35. Rxb7 {[%clk 0:01:29.3]} 35... d2 {[%clk 0:00:47.9]} 36.
Qd1 {[%clk 0:01:29.1]} 36... Qxf5 {[%clk 0:00:43.8]} 37. g3 {[%clk 0:01:28]}
37... c4 {[%clk 0:00:41.2]} 38. Rc7 {[%clk 0:01:24.7]} 38... Qe4 {[%clk
0:00:37.5]} 39. Qh5 {[%clk 0:01:20.6]} 39... Qe8 {[%clk 0:00:29.1]} 40. Qd1
{[%clk 0:01:03.5]} 40... Qe1 {[%clk 0:00:28.3]} 41. Qc2 {[%clk 0:01:03.7]} 41...
Qf2+ {[%clk 0:00:27.8]} 0-1

[Event "*** SCC Grand Prix: Titled Tuesday Blitz"]
[Site "Chess.com"]
[Date "2020.08.11"]
[Round "6"]
[White "dosto07"]
[Black "Euge_chess"]
[Result "1-0"]
[WhiteElo "2291"]
[BlackElo "2069"]
[TimeControl "180+1"]
[EndTime "11:06:28 PDT"]
[Termination "dosto07 won on time"]

1. e4 {[%clk 0:02:59.4]} 1... e5 {[%clk 0:02:59.3]} 2. Nf3 {[%clk 0:02:57.2]}
2... Nc6 {[%clk 0:02:59.5]} 3. Bb5 {[%clk 0:02:53.7]} 3... Nf6 {[%clk
0:02:59.6]} 4. O-O {[%clk 0:02:51.7]} 4... d6 {[%clk 0:02:57.3]} 5. Re1 {[%clk
0:02:46.4]} 5... Be7 {[%clk 0:02:56.7]} 6. d4 {[%clk 0:02:45.1]} 6... exd4
{[%clk 0:02:52.7]} 7. Nxd4 {[%clk 0:02:44]} 7... Bd7 {[%clk 0:02:53.1]} 8. Nc3
{[%clk 0:02:42.8]} 8... Nxd4 {[%clk 0:02:50.5]} 9. Bxd7+ {[%clk 0:02:39.9]} 9...
Qxd7 {[%clk 0:02:48.5]} 10. Qxd4 {[%clk 0:02:40.8]} 10... O-O {[%clk 0:02:47.6]}
11. Bg5 {[%clk 0:02:37.9]} 11... h6 {[%clk 0:02:43.8]} 12. Bh4 {[%clk
0:02:37.6]} 12... Ng4 {[%clk 0:02:32.6]} 13. Bxe7 {[%clk 0:02:31.4]} 13... Qxe7
{[%clk 0:02:32]} 14. Nd5 {[%clk 0:02:31.8]} 14... Qd7 {[%clk 0:02:28.1]} 15. h3
{[%clk 0:02:22.3]} 15... Ne5 {[%clk 0:02:25]} 16. f4 {[%clk 0:02:17.2]} 16...
Nc6 {[%clk 0:02:16.2]} 17. Qd3 {[%clk 0:02:15.3]} 17... Rfe8 {[%clk 0:02:11.3]}
18. Rad1 {[%clk 0:02:13.2]} 18... Ne7 {[%clk 0:02:01.2]} 19. Nc3 {[%clk
0:02:07.6]} 19... Rad8 {[%clk 0:01:54.8]} 20. Qg3 {[%clk 0:02:04.7]} 20... Qc6
{[%clk 0:01:46.8]} 21. f5 {[%clk 0:01:59]} 21... f6 {[%clk 0:01:45.4]} 22. Kh1
{[%clk 0:01:58.7]} 22... b5 {[%clk 0:01:27.6]} 23. Qd3 {[%clk 0:01:56.5]} 23...
a6 {[%clk 0:01:23.4]} 24. Ne2 {[%clk 0:01:54.4]} 24... d5 {[%clk 0:01:19.6]} 25.
Nd4 {[%clk 0:01:40.7]} 25... Qc4 {[%clk 0:01:12.4]} 26. Ne6 {[%clk 0:01:33.3]}
26... Rd7 {[%clk 0:00:47.3]} 27. Qg3 {[%clk 0:01:19]} 27... Nc6 {[%clk
0:00:32.7]} 28. Rxd5 {[%clk 0:01:14.1]} 28... Rde7 {[%clk 0:00:32.3]} 29. b3
{[%clk 0:01:09.2]} 29... Qxc2 {[%clk 0:00:17.6]} 30. Rc5 {[%clk 0:01:04.2]}
30... Qxa2 {[%clk 0:00:12.3]} 31. Rxc6 {[%clk 0:01:03.8]} 31... Qxb3 {[%clk
0:00:11]} 32. Rxc7 {[%clk 0:01:00.6]} 32... Rxc7 {[%clk 0:00:09.1]} 33. Qxb3
{[%clk 0:00:57.8]} 33... Rce7 {[%clk 0:00:07.4]} 34. Nc7+ {[%clk 0:00:55]} 1-0

[Event "*** SCC Grand Prix: Titled Tuesday Blitz"]
[Site "Chess.com"]
[Date "2020.08.11"]
[Round "6"]
[White "mortngabriel"]
[Black "GalperinPlaton"]
[Result "0-1"]
[WhiteElo "2453"]
[BlackElo "2614"]
[TimeControl "180+1"]
[EndTime "11:06:33 PDT"]
[Termination "GalperinPlaton won by resignation"]

1. d4 {[%clk 0:03:00.9]} 1... f5 {[%clk 0:02:50.3]} 2. Nc3 {[%clk 0:03:00]} 2...
Nf6 {[%clk 0:02:50.9]} 3. Bg5 {[%clk 0:02:59.3]} 3... d5 {[%clk 0:02:50.7]} 4.
Bxf6 {[%clk 0:02:57.8]} 4... exf6 {[%clk 0:02:51.6]} 5. e3 {[%clk 0:02:58.4]}
5... Be6 {[%clk 0:02:48.3]} 6. Qf3 {[%clk 0:02:57.9]} 6... c6 {[%clk 0:02:43.9]}
7. Bd3 {[%clk 0:02:57.5]} 7... g6 {[%clk 0:02:43.6]} 8. Nge2 {[%clk 0:02:57.8]}
8... Nd7 {[%clk 0:02:43]} 9. Nf4 {[%clk 0:02:52.8]} 9... Bf7 {[%clk 0:02:43.1]}
10. O-O-O {[%clk 0:02:52.5]} 10... Bd6 {[%clk 0:02:41.8]} 11. h3 {[%clk
0:02:51.1]} 11... Qe7 {[%clk 0:02:37.5]} 12. g4 {[%clk 0:02:48.6]} 12... O-O-O
{[%clk 0:02:21.1]} 13. gxf5 {[%clk 0:02:46.9]} 13... g5 {[%clk 0:02:21]} 14.
Nfe2 {[%clk 0:02:38.9]} 14... h5 {[%clk 0:02:18.1]} 15. h4 {[%clk 0:02:33.8]}
15... Kb8 {[%clk 0:02:09.9]} 16. Kb1 {[%clk 0:02:27]} 16... Rhg8 {[%clk
0:02:04.4]} 17. Ng3 {[%clk 0:02:24.1]} 17... Rh8 {[%clk 0:01:46.8]} 18. Rdg1
{[%clk 0:01:37.9]} 18... Rdg8 {[%clk 0:01:39.1]} 19. hxg5 {[%clk 0:01:28.3]}
19... Rxg5 {[%clk 0:01:36.2]} 20. Nce2 {[%clk 0:01:22.5]} 20... h4 {[%clk
0:01:34.9]} 21. Nf4 {[%clk 0:01:16.4]} 21... Qe8 {[%clk 0:01:22.8]} 22. Nge2
{[%clk 0:01:15.7]} 22... Rh6 {[%clk 0:01:15.9]} 23. Rh3 {[%clk 0:00:52.6]} 23...
Qg8 {[%clk 0:01:07.7]} 24. Rgh1 {[%clk 0:00:50.7]} 24... c5 {[%clk 0:00:54.6]}
25. Bb5 {[%clk 0:00:39.7]} 25... Nb6 {[%clk 0:00:50.1]} 26. dxc5 {[%clk
0:00:39.4]} 26... Bxc5 {[%clk 0:00:49.7]} 27. a3 {[%clk 0:00:17]} 27... Rxf5
{[%clk 0:00:44.8]} 28. Rxh4 {[%clk 0:00:14]} 28... Rxh4 {[%clk 0:00:43.1]} 29.
Rxh4 {[%clk 0:00:14.9]} 29... d4 {[%clk 0:00:40.6]} 30. exd4 {[%clk 0:00:12.4]}
30... Bxd4 {[%clk 0:00:41.5]} 31. Nxd4 {[%clk 0:00:11]} 31... Qg1+ {[%clk
0:00:39.7]} 0-1

[Event "*** SCC Grand Prix: Titled Tuesday Blitz"]
[Site "Chess.com"]
[Date "2020.08.11"]
[Round "6"]
[White "RobPeresian"]
[Black "Na_binci"]
[Result "1-0"]
[WhiteElo "2240"]
[BlackElo "1972"]
[TimeControl "180+1"]
[EndTime "11:06:34 PDT"]
[Termination "RobPeresian won by resignation"]

1. Nf3 {[%clk 0:03:00.9]} 1... Nf6 {[%clk 0:02:59.3]} 2. c4 {[%clk 0:02:55.4]}
2... g6 {[%clk 0:02:58.3]} 3. Nc3 {[%clk 0:02:52.4]} 3... Bg7 {[%clk 0:02:58.2]}
4. e4 {[%clk 0:02:50.8]} 4... d6 {[%clk 0:02:58.4]} 5. d4 {[%clk 0:02:51.2]}
5... O-O {[%clk 0:02:58.7]} 6. h3 {[%clk 0:02:51.7]} 6... e5 {[%clk 0:02:59.2]}
7. d5 {[%clk 0:02:50]} 7... Na6 {[%clk 0:02:55.3]} 8. Bg5 {[%clk 0:02:49.6]}
8... h6 {[%clk 0:02:55.5]} 9. Be3 {[%clk 0:02:48.7]} 9... Nc5 {[%clk 0:02:55.2]}
10. Nd2 {[%clk 0:02:48.7]} 10... a5 {[%clk 0:02:53.3]} 11. Be2 {[%clk
0:02:48.1]} 11... Nh7 {[%clk 0:02:37.1]} 12. g4 {[%clk 0:02:45.9]} 12... f5
{[%clk 0:02:29.9]} 13. gxf5 {[%clk 0:02:44.4]} 13... gxf5 {[%clk 0:02:30.8]} 14.
Rg1 {[%clk 0:02:37.8]} 14... Kh8 {[%clk 0:02:28.1]} 15. Qc2 {[%clk 0:02:17.3]}
15... fxe4 {[%clk 0:01:50.5]} 16. Ndxe4 {[%clk 0:02:11.7]} 16... Bf5 {[%clk
0:01:50.3]} 17. Bxc5 {[%clk 0:02:04.4]} 17... dxc5 {[%clk 0:01:49.2]} 18. O-O-O
{[%clk 0:02:03.8]} 18... Qh4 {[%clk 0:01:28.6]} 19. Bd3 {[%clk 0:02:02]} 19...
c6 {[%clk 0:00:38.3]} 20. d6 {[%clk 0:01:50.7]} 20... b5 {[%clk 0:00:25.5]} 21.
Nxc5 {[%clk 0:01:39.5]} 21... Bxd3 {[%clk 0:00:23.6]} 22. Rxd3 {[%clk
0:01:36.4]} 22... Rxf2 {[%clk 0:00:21.9]} 23. Rd2 {[%clk 0:01:29.9]} 23... Rxd2
{[%clk 0:00:20.8]} 24. Qxd2 {[%clk 0:01:30.8]} 24... b4 {[%clk 0:00:18.7]} 25.
N3e4 {[%clk 0:01:29.8]} 25... Ng5 {[%clk 0:00:17.1]} 26. Rxg5 {[%clk 0:01:01]}
26... hxg5 {[%clk 0:00:15.3]} 27. d7 {[%clk 0:01:01.2]} 27... g4 {[%clk
0:00:12.5]} 28. hxg4 {[%clk 0:00:55.6]} 28... Qh1+ {[%clk 0:00:11.2]} 29. Kc2
{[%clk 0:00:55]} 29... a4 {[%clk 0:00:07.6]} 30. Qxb4 {[%clk 0:00:46.6]} 30...
Rd8 {[%clk 0:00:08.5]} 31. Qd2 {[%clk 0:00:42.5]} 31... Qg1 {[%clk 0:00:06.7]}
32. Qg5 {[%clk 0:00:37.7]} 32... a3 {[%clk 0:00:06.1]} 33. Qxd8+ {[%clk
0:00:36.5]} 33... Kh7 {[%clk 0:00:06.8]} 34. Qh4+ {[%clk 0:00:36.2]} 34... Kg8
{[%clk 0:00:06.6]} 35. d8=Q+ {[%clk 0:00:36]} 1-0

[Event "*** SCC Grand Prix: Titled Tuesday Blitz"]
[Site "Chess.com"]
[Date "2020.08.11"]
[Round "6"]
[White "FlamingPhoenix123"]
[Black "WIDBIFS"]
[Result "1/2-1/2"]
[WhiteElo "2558"]
[BlackElo "2707"]
[TimeControl "180+1"]
[EndTime "11:06:36 PDT"]
[Termination "Game drawn by repetition"]

1. e4 {[%clk 0:03:00.9]} 1... g6 {[%clk 0:03:00]} 2. d4 {[%clk 0:02:58.5]} 2...
Bg7 {[%clk 0:03:00.3]} 3. Nc3 {[%clk 0:02:59.4]} 3... c6 {[%clk 0:03:00.7]} 4.
Nf3 {[%clk 0:02:56.8]} 4... d6 {[%clk 0:03:00.1]} 5. a4 {[%clk 0:02:53.9]} 5...
Nf6 {[%clk 0:02:59.4]} 6. h3 {[%clk 0:02:49.8]} 6... O-O {[%clk 0:02:59.6]} 7.
Be3 {[%clk 0:02:49.9]} 7... Nbd7 {[%clk 0:02:59.9]} 8. a5 {[%clk 0:02:50.2]}
8... Qc7 {[%clk 0:03:00.1]} 9. Be2 {[%clk 0:02:33.7]} 9... e5 {[%clk 0:02:59.8]}
10. O-O {[%clk 0:02:30.6]} 10... exd4 {[%clk 0:02:59.2]} 11. Bxd4 {[%clk
0:02:30.7]} 11... Re8 {[%clk 0:02:58.6]} 12. Bc4 {[%clk 0:02:30.6]} 12... Ne5
{[%clk 0:02:58.2]} 13. Nxe5 {[%clk 0:02:27.6]} 13... dxe5 {[%clk 0:02:59.1]} 14.
Be3 {[%clk 0:02:26.2]} 14... Nh5 {[%clk 0:02:56.9]} 15. Qf3 {[%clk 0:02:25.6]}
15... Nf4 {[%clk 0:02:56.9]} 16. Rfd1 {[%clk 0:02:25.4]} 16... Be6 {[%clk
0:02:56.7]} 17. Bf1 {[%clk 0:02:24.2]} 17... Bf8 {[%clk 0:02:43.3]} 18. Na4
{[%clk 0:02:22.5]} 18... Red8 {[%clk 0:02:12.7]} 19. Nc5 {[%clk 0:02:14.6]}
19... Rxd1 {[%clk 0:02:10.9]} 20. Rxd1 {[%clk 0:02:11.8]} 20... Bxc5 {[%clk
0:02:07.9]} 21. Bxc5 {[%clk 0:02:12.7]} 21... Qxa5 {[%clk 0:02:06.9]} 22. b4
{[%clk 0:02:07.4]} 22... Qa2 {[%clk 0:01:57.3]} 23. Bd6 {[%clk 0:02:07.2]} 23...
f6 {[%clk 0:01:41.1]} 24. g3 {[%clk 0:02:01.2]} 24... Nxh3+ {[%clk 0:01:41]} 25.
Bxh3 {[%clk 0:02:00.8]} 25... Bxh3 {[%clk 0:01:41.9]} 26. Qxf6 {[%clk
0:02:00.4]} 26... Qf7 {[%clk 0:01:42.3]} 27. Qxf7+ {[%clk 0:01:52.8]} 27... Kxf7
{[%clk 0:01:43.2]} 28. Bxe5 {[%clk 0:01:53.7]} 28... Re8 {[%clk 0:01:38.4]} 29.
f4 {[%clk 0:01:50.8]} 29... Bg4 {[%clk 0:01:35.6]} 30. Rd6 {[%clk 0:01:50.4]}
30... Bf3 {[%clk 0:01:17.2]} 31. Rd4 {[%clk 0:01:32.4]} 31... Bg4 {[%clk
0:01:14.2]} 32. Kf2 {[%clk 0:01:31.5]} 32... Re7 {[%clk 0:01:10.1]} 33. Rd6
{[%clk 0:01:31.2]} 33... Rd7 {[%clk 0:01:08.6]} 34. Rxd7+ {[%clk 0:01:30.7]}
34... Bxd7 {[%clk 0:01:09.5]} 35. Bd4 {[%clk 0:01:30.8]} 35... b6 {[%clk
0:01:08.9]} 36. Be5 {[%clk 0:01:30.5]} 36... a5 {[%clk 0:01:09]} 37. bxa5 {[%clk
0:01:30.3]} 37... bxa5 {[%clk 0:01:09.9]} 38. Bd6 {[%clk 0:01:30.4]} 38... Ke6
{[%clk 0:01:08.9]} 39. Ba3 {[%clk 0:01:30.4]} 39... Bc8 {[%clk 0:01:05.7]} 40.
Ke3 {[%clk 0:01:30.6]} 40... h5 {[%clk 0:01:05.1]} 41. Kd4 {[%clk 0:01:30.4]}
41... Ba6 {[%clk 0:01:02]} 42. Kc5 {[%clk 0:01:25.8]} 42... Be2 {[%clk
0:00:58.6]} 43. Kxc6 {[%clk 0:01:14.1]} 43... Bf3 {[%clk 0:00:58.7]} 44. Kb5
{[%clk 0:01:14.2]} 44... Bxe4 {[%clk 0:00:59.2]} 45. c3 {[%clk 0:01:10.4]} 45...
Kf5 {[%clk 0:00:59.1]} 46. Be7 {[%clk 0:01:10.4]} 46... Ke6 {[%clk 0:00:54]} 47.
Bh4 {[%clk 0:01:03.7]} 47... Bd3+ {[%clk 0:00:50.3]} 48. Kxa5 {[%clk 0:01:03.4]}
48... Kd5 {[%clk 0:00:50]} 49. Kb6 {[%clk 0:01:02.9]} 49... Kc4 {[%clk
0:00:49.8]} 50. Bf6 {[%clk 0:01:01.9]} 50... Bf5 {[%clk 0:00:50]} 51. Kc6 {[%clk
0:01:01.6]} 51... Bd3 {[%clk 0:00:50.4]} 52. Kd6 {[%clk 0:01:01.8]} 52... Bf5
{[%clk 0:00:51]} 53. Bd4 {[%clk 0:01:01.6]} 53... Bd3 {[%clk 0:00:51.5]} 54. Ke5
{[%clk 0:01:01.7]} 54... Bf5 {[%clk 0:00:52]} 55. Kf6 {[%clk 0:01:01.9]} 55...
Bd3 {[%clk 0:00:52.5]} 56. Kg5 {[%clk 0:01:02.1]} 56... Bf5 {[%clk 0:00:52.7]}
57. Kh4 {[%clk 0:01:02.5]} 57... Bd3 {[%clk 0:00:52.9]} 58. g4 {[%clk
0:01:02.6]} 58... hxg4 {[%clk 0:00:53.8]} 59. Kxg4 {[%clk 0:01:03.5]} 59... Bf5+
{[%clk 0:00:54.7]} 60. Kg5 {[%clk 0:01:04.4]} 60... Bd3 {[%clk 0:00:55.6]} 61.
Kf6 {[%clk 0:01:04.9]} 61... Bf5 {[%clk 0:00:56.5]} 62. Kg5 {[%clk 0:01:05.8]}
62... Bd3 {[%clk 0:00:57]} 63. Kf6 {[%clk 0:01:06.7]} 63... Bf5 {[%clk
0:00:57.9]} 64. Kg5 {[%clk 0:01:07.6]} 1/2-1/2

[Event "*** SCC Grand Prix: Titled Tuesday Blitz"]
[Site "Chess.com"]
[Date "2020.08.11"]
[Round "6"]
[White "PauloCesarCosta_sad"]
[Black "ChessBitl"]
[Result "0-1"]
[WhiteElo "2253"]
[BlackElo "2428"]
[TimeControl "180+1"]
[EndTime "11:06:39 PDT"]
[Termination "ChessBitl won on time"]

1. Nf3 {[%clk 0:03:00.9]} 1... c5 {[%clk 0:02:59.7]} 2. c4 {[%clk 0:03:01]} 2...
Nc6 {[%clk 0:03:00.6]} 3. g3 {[%clk 0:03:01.4]} 3... d6 {[%clk 0:02:55.1]} 4. d4
{[%clk 0:03:00.1]} 4... cxd4 {[%clk 0:02:54.6]} 5. Nxd4 {[%clk 0:03:01]} 5... e5
{[%clk 0:02:47.5]} 6. Nb5 {[%clk 0:02:57.8]} 6... Be6 {[%clk 0:02:44.1]} 7. b3
{[%clk 0:02:20.1]} 7... Be7 {[%clk 0:02:43.1]} 8. Bg2 {[%clk 0:02:14]} 8... Qd7
{[%clk 0:02:43.2]} 9. O-O {[%clk 0:02:08.4]} 9... Nf6 {[%clk 0:02:43.6]} 10.
N5c3 {[%clk 0:02:04.6]} 10... Rc8 {[%clk 0:02:38]} 11. Bg5 {[%clk 0:02:04.5]}
11... h6 {[%clk 0:02:33.9]} 12. Bxf6 {[%clk 0:02:04.5]} 12... Bxf6 {[%clk
0:02:34.8]} 13. Nd5 {[%clk 0:02:04.7]} 13... Bxd5 {[%clk 0:02:27.8]} 14. cxd5
{[%clk 0:02:02.2]} 14... Nd4 {[%clk 0:02:23.9]} 15. Nd2 {[%clk 0:01:57.2]} 15...
O-O {[%clk 0:02:18.9]} 16. Ne4 {[%clk 0:01:55.3]} 16... Be7 {[%clk 0:02:15.8]}
17. e3 {[%clk 0:01:52]} 17... Nb5 {[%clk 0:02:15.6]} 18. a4 {[%clk 0:01:48.3]}
18... Nc3 {[%clk 0:02:09.1]} 19. Nxc3 {[%clk 0:01:48.2]} 19... Rxc3 {[%clk
0:02:10]} 20. Rc1 {[%clk 0:01:48.5]} 20... Rfc8 {[%clk 0:02:01.3]} 21. Rxc3
{[%clk 0:01:40.9]} 21... Rxc3 {[%clk 0:02:02.2]} 22. Qb1 {[%clk 0:01:26.5]}
22... Qc8 {[%clk 0:01:56.5]} 23. Be4 {[%clk 0:01:20.8]} 23... Kf8 {[%clk
0:01:53.2]} 24. Bf5 {[%clk 0:01:19.9]} 24... Qc5 {[%clk 0:01:50]} 25. Be4 {[%clk
0:01:18.6]} 25... a6 {[%clk 0:01:46.6]} 26. Rd1 {[%clk 0:01:13.6]} 26... Qa3
{[%clk 0:01:43.9]} 27. Bc2 {[%clk 0:01:10.8]} 27... Qb4 {[%clk 0:01:39.1]} 28.
Rd3 {[%clk 0:01:04.7]} 28... Rc5 {[%clk 0:01:39]} 29. Rd1 {[%clk 0:01:01.1]}
29... g6 {[%clk 0:01:39.2]} 30. h4 {[%clk 0:01:00.6]} 30... h5 {[%clk 0:01:36]}
31. Kg2 {[%clk 0:00:59]} 31... Rc3 {[%clk 0:01:33.1]} 32. Rd3 {[%clk 0:00:58.2]}
32... Rc8 {[%clk 0:01:33]} 33. Kh2 {[%clk 0:00:55.5]} 33... Bf6 {[%clk
0:01:28.2]} 34. Rd1 {[%clk 0:00:51.1]} 34... Kg7 {[%clk 0:01:28.4]} 35. e4
{[%clk 0:00:41.8]} 35... Bd8 {[%clk 0:01:25.3]} 36. Bd3 {[%clk 0:00:36.9]} 36...
Ba5 {[%clk 0:01:24]} 37. Qb2 {[%clk 0:00:33.3]} 37... Rc3 {[%clk 0:01:19.9]} 38.
Bc2 {[%clk 0:00:26.8]} 38... Bb6 {[%clk 0:01:19.9]} 39. Kg1 {[%clk 0:00:20.7]}
39... Bd4 {[%clk 0:01:19.5]} 40. Qb1 {[%clk 0:00:16.4]} 40... Rxg3+ {[%clk
0:01:19.2]} 41. Kf1 {[%clk 0:00:14.3]} 41... Rf3 {[%clk 0:01:15.5]} 42. Kg2
{[%clk 0:00:04]} 42... Rxf2+ {[%clk 0:01:15]} 43. Kh1 {[%clk 0:00:02.4]} 43...
Qc5 {[%clk 0:01:07.3]} 44. Rd3 {[%clk 0:00:02.3]} 44... Qc8 {[%clk 0:01:04.5]}
0-1

[Event "*** SCC Grand Prix: Titled Tuesday Blitz"]
[Site "Chess.com"]
[Date "2020.08.11"]
[Round "6"]
[White "Zhani-Z"]
[Black "Anna_ChessMate"]
[Result "1-0"]
[WhiteElo "2470"]
[BlackElo "2599"]
[TimeControl "180+1"]
[EndTime "11:06:44 PDT"]
[Termination "Zhani-Z won on time"]

1. e4 {[%clk 0:03:00.9]} 1... c6 {[%clk 0:02:58.7]} 2. d4 {[%clk 0:02:56.9]}
2... d5 {[%clk 0:02:59.6]} 3. exd5 {[%clk 0:02:56.7]} 3... cxd5 {[%clk
0:03:00.5]} 4. Bd3 {[%clk 0:02:57]} 4... Nc6 {[%clk 0:02:59.9]} 5. c3 {[%clk
0:02:56.4]} 5... Nf6 {[%clk 0:03:00]} 6. Bf4 {[%clk 0:02:56.8]} 6... Bg4 {[%clk
0:03:00.1]} 7. Qb3 {[%clk 0:02:56.9]} 7... e5 {[%clk 0:03:00.2]} 8. h3 {[%clk
0:02:49.5]} 8... exf4 {[%clk 0:02:56.7]} 9. hxg4 {[%clk 0:02:49.4]} 9... Qe7+
{[%clk 0:02:51.5]} 10. Kf1 {[%clk 0:02:48.2]} 10... Nxg4 {[%clk 0:02:49.5]} 11.
Nd2 {[%clk 0:02:13.7]} 11... Qd7 {[%clk 0:02:27.4]} 12. Re1+ {[%clk 0:02:02.6]}
12... Be7 {[%clk 0:02:27.8]} 13. Ngf3 {[%clk 0:01:47]} 13... O-O-O {[%clk
0:02:24.3]} 14. Qa4 {[%clk 0:01:09.5]} 14... Bd6 {[%clk 0:01:38.9]} 15. Rh5
{[%clk 0:00:43.5]} 15... Ne7 {[%clk 0:01:05.6]} 16. Qxa7 {[%clk 0:00:40.9]}
16... g6 {[%clk 0:00:58.6]} 17. Rh4 {[%clk 0:00:21.5]} 17... Nc6 {[%clk
0:00:48]} 18. Qa4 {[%clk 0:00:20.6]} 18... h5 {[%clk 0:00:34.5]} 19. Bb5 {[%clk
0:00:19.7]} 19... Rde8 {[%clk 0:00:27]} 20. Rc1 {[%clk 0:00:14.8]} 20... Kc7
{[%clk 0:00:19.1]} 21. c4 {[%clk 0:00:14.6]} 21... Ra8 {[%clk 0:00:19.6]} 22.
Qb3 {[%clk 0:00:14.4]} 22... dxc4 {[%clk 0:00:12.2]} 23. Qxc4 {[%clk 0:00:13.8]}
23... Ra5 {[%clk 0:00:03.3]} 24. d5 {[%clk 0:00:13.2]} 1-0

[Event "*** SCC Grand Prix: Titled Tuesday Blitz"]
[Site "Chess.com"]
[Date "2020.08.11"]
[Round "6"]
[White "mbachez"]
[Black "Skatchkov_V"]
[Result "0-1"]
[WhiteElo "2464"]
[BlackElo "2638"]
[TimeControl "180+1"]
[EndTime "11:06:47 PDT"]
[Termination "Skatchkov_V won by checkmate"]

1. e4 {[%clk 0:02:50.5]} 1... e5 {[%clk 0:02:59.4]} 2. Nf3 {[%clk 0:02:50.1]}
2... Nf6 {[%clk 0:02:59.6]} 3. Nxe5 {[%clk 0:02:49.2]} 3... d6 {[%clk
0:02:59.7]} 4. Nxf7 {[%clk 0:02:49.5]} 4... Kxf7 {[%clk 0:02:56.7]} 5. Nc3
{[%clk 0:02:49.6]} 5... Qe8 {[%clk 0:02:48.4]} 6. Bd3 {[%clk 0:02:12.5]} 6...
Nc6 {[%clk 0:02:42.4]} 7. O-O {[%clk 0:02:11]} 7... Be6 {[%clk 0:02:39.2]} 8. f4
{[%clk 0:02:09.7]} 8... Kg8 {[%clk 0:02:39.4]} 9. b3 {[%clk 0:02:05.6]} 9... Bf7
{[%clk 0:02:19.5]} 10. Re1 {[%clk 0:02:01.4]} 10... g6 {[%clk 0:02:13]} 11. Bb2
{[%clk 0:01:59.6]} 11... Bg7 {[%clk 0:02:09.7]} 12. e5 {[%clk 0:01:58.5]} 12...
dxe5 {[%clk 0:02:05.7]} 13. fxe5 {[%clk 0:01:59.4]} 13... Nxe5 {[%clk
0:02:03.5]} 14. Nb5 {[%clk 0:01:50.6]} 14... Nd5 {[%clk 0:01:37.1]} 15. Bc4
{[%clk 0:01:40.6]} 15... c6 {[%clk 0:01:31.1]} 16. Nd6 {[%clk 0:01:34.3]} 16...
Qd7 {[%clk 0:01:28.7]} 17. Nxf7 {[%clk 0:00:43.2]} 17... Nxf7 {[%clk 0:01:29.6]}
18. c3 {[%clk 0:00:37]} 18... h6 {[%clk 0:01:22.7]} 19. d4 {[%clk 0:00:36.5]}
19... Kh7 {[%clk 0:01:19.7]} 20. Bd3 {[%clk 0:00:34]} 20... Rae8 {[%clk
0:01:17.3]} 21. Qc2 {[%clk 0:00:23]} 21... Nf4 {[%clk 0:01:14.1]} 22. Be4 {[%clk
0:00:22.8]} 22... Ng5 {[%clk 0:01:12]} 23. g3 {[%clk 0:00:14.7]} 23... Nfh3+
{[%clk 0:00:43.1]} 24. Kg2 {[%clk 0:00:14.7]} 24... Rxe4 {[%clk 0:00:43.3]} 25.
Rxe4 {[%clk 0:00:14.4]} 25... Qd5 {[%clk 0:00:43.9]} 26. Re1 {[%clk 0:00:13.7]}
26... Re8 {[%clk 0:00:34.3]} 27. c4 {[%clk 0:00:13.6]} 27... Qf5 {[%clk
0:00:30]} 28. g4 {[%clk 0:00:07.4]} 28... Qf3# {[%clk 0:00:29.9]} 0-1